Cogmind - Beta 13 @@@ ROGUE MODE // 2024.04.05 @ 10:06:47 Player: SuperDrops Result: Destroyed by D-53 Grenadier with Mini Grenade Launcher Performance ------------- Evolutions (0) 0 Regions Visited (2) 400 Robots Destroyed (15) 75 Value Destroyed (313) 313 Prototype IDs (0) 0 Alien Tech Used (0) 0 Bonus (0) 0 TOTAL SCORE: 788 Bonus ------- None Cogmind --------- Core Integrity 0/250 Matter 290/300 Energy 100/100 System Corruption 0% Temperature Cool (0) Movement Core (700) Ox13 Location -10/Mines Parts ------- > --- POWER (1) -------- (None) > --- PROPULSION (2) --- (None) > --- UTILITY (2) ------ High-capacity Storage Unit Signal Interpreter > --- WEAPON (2) ------- Light Assault Rifle > --- INVENTORY (20) --- Ion Engine Aluminum Leg Aluminum Leg Wheel Compact Wheel EM Pulse Gun EM Pulse Gun Datajack Mining Laser Peak State ------------ > --- POWER ------------ Light Nuclear Core > --- PROPULSION ------- Light Treads Light Treads > --- UTILITY ---------- High-capacity Storage Unit > --- WEAPON ----------- Light Assault Rifle Grenade Launcher > --- INVENTORY -------- Ion Engine Aluminum Leg Aluminum Leg Wheel Compact Wheel Signal Interpreter EM Pulse Gun EM Pulse Gun Datajack Mining Laser [Rating: 9] Favorites ----------- Power Light Nuclear Core Engine Light Ion Engine Power Core Light Nuclear Core Propulsion Light Treads Treads Light Treads Utility High-capacity Storage Unit Storage High-capacity Storage Unit Processor Signal Interpreter Weapon Light Assault Rifle Energy Gun EM Pulse Gun Ballistic Gun Light Assault Rifle Launcher Grenade Launcher Build | -11 -10 -10 ------- Run | Yrd Mat Min Slots Evolved . | . . . Power . | . . . Propulsion . | . . . Utility . | . . . Weapon . | . . . Parts Attached 10 | 6 4 . Power 2 | 1 1 . Engine 1 | 1 . . Core 1 | . 1 . Reactor . | . . . Propulsion 2 | 2 . . Treads 2 | 2 . . Leg . | . . . Wheel . | . . . Hover . | . . . Flight . | . . . Utility 3 | 1 2 . Device . | . . . Storage 2 | 1 1 . Processor 1 | . 1 . Hackware . | . . . Protection . | . . . Artifact . | . . . Weapon 3 | 2 1 . Energy Gun 1 | 1 . . Energy Cannon . | . . . Ballistic Gun 1 | 1 . . Ballistic Cannon . | . . . Launcher 1 | . 1 . Special Weapon . | . . . Impact Weapon . | . . . Slashing Weapon . | . . . Piercing Weapon . | . . . Special Melee Weapon . | . . . Unidentified Prototypes . | . . . Parts Lost 5 | . 1 4 Power 2 | . 1 1 Propulsion 2 | . . 2 Utility . | . . . Weapon 1 | . . 1 Highest Loss Streak 4 | . 1 4 To Critical Strikes . | . . . Average Slot Usage (%) 93 | . 86 100 Engine 4 | . 8 . Core 9 | . 4 14 Treads 28 | . 28 28 Storage 14 | . 14 14 Processor 8 | . 1 14 Ballistic Gun 14 | . 14 14 Launcher 13 | . 12 14 Naked Turns . | . . . Heaviest Build 49 | 11 49 49 Greatest Support 40 | 40 40 40 Greatest Overweight (x) 14 | . 1 14 Average Overweight (x) . | . . 1 Largest Inventory Capacity 20 | 8 20 20 Average Capacity 17 | 7 16 20 Most Carried 11 | 6 11 9 Average Carried 8 | 4 8 9 Final Capacity 20 | 8 20 20 Final Carried 9 | 6 9 9 Class Distribution -------------------- 100% | Mutant Dominant Class ---------------- Mutant | -10/Materials Mutant | -10/Mines Resources | -11 -10 -10 ----------- Run | Yrd Mat Min Matter Collected 388 | 214 144 30 Remotely . | . . . Salvage Created 340 | . 276 64 Parts 33 | . 28 5 Haulers Intercepted . | . . . Recyclers Shooed . | . . . Parts Field Recycled . | . . . Retrieved Matter . | . . . Parts Self-Destructed . | . . . Prevented . | . . . Kills | -11 -10 -10 ------- Run | Yrd Mat Min Combat Hostiles Destroyed 15 | . 10 5 Guns 5 | . 5 . AOE 10 | . 5 5 Classes Destroyed 6 | . 4 2 Worker 1 | . . 1 Recycler 1 | . 1 . Watcher 1 | . 1 . Swarmer 6 | . 6 . Grunt 6 | . 4 2 Assembled 3 | . . 3 Best Kill Streak 4 | . 4 4 Combat Bots Only 4 | . 4 3 Max Kills in Single Turn 4 | . 4 3 Gunslinging . | . . . Exploded 4 | . 4 3 Melee . | . . . Uniques/NPCs Destroyed . | . . . Combat | -11 -10 -10 -------- Run | Yrd Mat Min Hostile Shots Fired 56 | . 42 14 Missed 15 | . 10 5 Damage Taken 748 | . 335 413 Core 263 | . 75 188 Absorbed by Shields . | . . . Core Remaining (%) 100 | 100 . . Volleys Fired 51 | . 46 5 Largest 1 | . 1 1 Hottest 30 | . 30 30 Shots Fired 51 | . 46 5 Gun 43 | . 43 . Cannon . | . . . Launcher 8 | . 3 5 Special . | . . . Kinetic 43 | . 43 . Thermal . | . . . Explosive 8 | . 3 5 Electromagnetic . | . . . Robot Hit Streak 10 | . 10 2 Robot Miss Streak 5 | . 5 3 Penetration Max . | . . . Secondary Targets . | . . . Shots Hit Robots 35 | . 33 2 Core Hits 29 | . 22 7 Critical Kills . | . . . Critical Parts Destroyed . | . . . Critical Strikes . | . . . Melee Attacks . | . . . Impact . | . . . Slashing . | . . . Piercing . | . . . Sneak Attacks . | . . . Combat Hostiles . | . . . Follow-up Attacks . | . . . Damage Inflicted 793 | . 547 246 Guns 260 | . 260 . Cannons . | . . . Explosions 533 | . 287 246 Melee . | . . . Ramming . | . . . Kinetic 260 | . 260 . Thermal . | . . . Explosive 533 | . 287 246 Electromagnetic . | . . . Impact . | . . . Slashing . | . . . Piercing . | . . . Highest Corruption . | . . . Average Corruption . | . . . Corruption Purged . | . . . Corruption Blocked . | . . . Overload Shots . | . . . Overflow Damage 11 | . 2 9 Projectiles . | . . . Explosions 11 | . 2 9 Melee . | . . . Knockbacks . | . . . Impact . | . . . Kinetic . | . . . Secondary . | . . . Self-Inflicted Damage 59 | . . 59 Shots 3 | . . 3 Rammed . | . . . Targets Rammed . | . . . Kicked . | . . . Crushed . | . . . Highest Temperature 22 | . 22 . Average Temperature 7 | . 7 . Received Heat Transfer 135 | . 135 . Siege Activations . | . . . Robots Corrupted . | . . . Combat Hostiles . | . . . Parts Fried . | . . . Impact Corruptions . | . . . Robots Melted . | . . . Combat Hostiles . | . . . Parts Melted . | . . . Heat Transferred . | . . . Parts Sabotaged . | . . . Parts Stolen . | . . . Parts Stripped . | . . . Power Chain Reactions . | . . . Alert | -11 -10 -10 ------- Run | Yrd Mat Min Peak Influence 231 | . 231 101 Initial 39 | . . 39 Average 82 | . 125 52 Maximum Alert Level 1 | . 1 . Low Security (%) 84 | 100 67 100 Level 1 15 | . 32 . Level 2 . | . . . Level 3 . | . . . Level 4 . | . . . Level 5 . | . . . High Security . | . . . Max Security . | . . . Squads Dispatched 2 | . 2 . Investigation . | . . . Extermination . | . . . Reinforcement 2 | . 2 . Assault . | . . . Garrison . | . . . Intercept . | . . . Searches Triggered . | . . . Construction Impeded . | . . . Haulers Reinforced . | . . . Active Scanning Responses . | . . . Cargo Convoy Interrupts . | . . . Stealth | -11 -10 -10 --------- Run | Yrd Mat Min Distress Signals 2 | . 2 . Communications Jammed . | . . . Distress Signals . | . . . Times Spotted 34 | . 16 18 Peak Tracking Total 9 | . 6 9 Tactical Retreats . | . . . Traps | -11 -10 -10 ------- Run | Yrd Mat Min Traps Triggered . | . . . Indirectly . | . . . Trap Hack Attempts . | . . . Triggered . | . . . Disarmed . | . . . Reprogrammed . | . . . Reused . | . . . Traps Extracted . | . . . Installed . | . . . Triggered . | . . . Machines | -11 -10 -10 ---------- Run | Yrd Mat Min Machines Disabled . | . . . Max in Single Turn . | . . . Machines Repaired . | . . . Machines Dismantled . | . . . Machines Sabotaged . | . . . Overloaded Fab Kills . | . . . Hacking | -11 -10 -10 --------- Run | Yrd Mat Min Machines Accessed . | . . . Terminals . | . . . Fabricators . | . . . Repair Stations . | . . . Recycling Units . | . . . Scanalyzers . | . . . Garrison Access . | . . . Total Hacks . | . . . Successful . | . . . Failed . | . . . Catastrophic . | . . . Database Lockouts . | . . . Manual . | . . . Terminals . | . . . Fabricators . | . . . Repair Stations . | . . . Recycling Units . | . . . Scanalyzers . | . . . Garrison Access . | . . . Terminal Hacks . | . . . Fabricator Hacks . | . . . Repair Station Hacks . | . . . Recycling Unit Hacks . | . . . Scanalyzer . | . . . Garrison Access Hacks . | . . . Unauthorized Hacks . | . . . Terminals . | . . . Fabricators . | . . . Repair Stations . | . . . Recycling Units . | . . . Scanalyzers . | . . . Garrison Access . | . . . Data Cores Recovered . | . . . Used . | . . . Hacking Detections . | . . . Full Trace Events . | . . . Feedback Events . | . . . Feedback Blocked . | . . . Robot Schematics Acquired . | . . . Robots Built . | . . . Authchips . | . . . Time . | . . . Total Robot Build Rating . | . . . Part Schematics Acquired . | . . . Parts Built . | . . . Authchips . | . . . Time . | . . . Total Part Build Rating . | . . . Parts Repaired . | . . . Time . | . . . Parts Recycled . | . . . Recycled Matter . | . . . Retrieved Matter . | . . . Retrieved Components . | . . . Parts Scanalyzed . | . . . Part Schematics Acquired . | . . . Parts Damaged . | . . . Bothacking | -11 -10 -10 ------------ Run | Yrd Mat Min Used RIF Installer . | . . . Robots Hacked . | . . . Non-combat . | . . . Combat . | . . . Robot Hacks Applied . | . . . Relay Couplers Released . | . . . Fabnet Peak Effective % . | . . . Robots Rewired . | . . . Allies Hacked . | . . . Hacks Repelled . | . . . Allies | -11 -10 -10 -------- Run | Yrd Mat Min Total Allies . | . . . Largest Group . | . . . Highest-Rated Group . | . . . Highest-Rated Ally . | . . . Total Orders . | . . . Ally Attacks . | . . . Total Damage . | . . . Kills . | . . . Allies Corrupted . | . . . Allies Melted . | . . . Intel | -11 -10 -10 ------- Run | Yrd Mat Min Robot Analysis Total . | . . . Derelict Logs Recovered 1 | . . 1 Drone Launches . | . . . Drone Recoveries . | . . . Exploration | -11 -10 -10 ------------- Run | Yrd Mat Min Turns Passed 1584 | 84 724 776 Spaces Moved 510 | 50 278 182 Core 13 | 12 . 1 Treads 497 | 38 278 181 Legs . | . . . Wheels . | . . . Hover . | . . . Flight . | . . . Fastest Speed 50 | 50 160 240 Average Speed 214 | 133 209 242 Slowest Speed 750 | 160 240 750 Overloaded Moves . | . . . Propulsion Burnouts . | . . . Robots Hopped . | . . . Cave-ins Triggered . | . . . Exploration Rate (%) 30 | 5 54 33 Regions Visited 2 Branch Regions 1 Pre-discovered Areas . | . . . Known Exits Taken 1 | . 1 . Unknown Exits Taken 1 | 1 . . Scrap Searched . | . . . Spaces Dug . | . . . Terrain Destroyed 44 | . 12 32 Melee . | . . . Projectile . | . . . AOE 44 | . 12 32 Terrain Rammed . | . . . Walls Destroyed . | . . . Machines Disabled . | . . . Actions | -11 -10 -10 --------- Run | Yrd Mat Min Total 963 | 67 382 514 Wait 376 | . 49 327 Move 508 | 49 277 182 Hop . | . . . Pick Up 17 | 12 5 . Fast Attach 1 | . 1 . Attach 8 | 6 2 . Detach . | . . . Swap 1 | . 1 . Drop 1 | . 1 . Fire 51 | . 46 5 Melee . | . . . Ram . | . . . Kick . | . . . Crush . | . . . Escape Stasis . | . . . Rewire . | . . . Trap . | . . . Miscellaneous . | . . . Route ------- -11/Scrapyard -10/Materials (discovered 2 exits: *Mat / *Min) -10/Mines (discovered 2 exits: *Mat / *Sub) History --------- Turn | Location | Event 6 | -11/Scrapyard | Discovered new exit (range 14) 85 | -11/Scrapyard | Entered Materials 324 | -10/Materials | Build established: Mutant 698 | -10/Materials | Discovered new exit (range 9) 720 | -10/Materials | Identified exit to Materials 776 | -10/Materials | Discovered new exit (range 13) 807 | -10/Materials | Identified exit to Mines 809 | -10/Materials | Entered Mines 1293 | -10/Mines | Discovered new exit (range 3) 1316 | -10/Mines | Identified exit to Subcaves 1397 | -10/Mines | Discovered exit to Materials (range 5) 1561 | -10/Mines | Assembled infested the area 1582 | -10/Mines | Core integrity fell below 50% 1585 | -10/Mines | Destroyed by D-53 Grenadier with Mini Grenade Launcher Last Messages --------------- C-30 ARC bursts open, deploying its payload. D-53 Grenadier unfolds itself. as-89903 destroyed. as-32160 destroyed. as-32232 destroyed. as-77526 destroyed. as-06432 destroyed. Destroyed Asb. F-torch. as-38652 destroyed. Destroyed Asb. Hover Unit. as-28511 destroyed. as-99127 destroyed. Lgt. Nuclear Core destroyed. Lgt. Treads destroyed. U-05 Engineer lays Concrete. as-52774 destroyed. as-55202 destroyed. U-05 Engineer builds a Wall. The unstable cave ceiling collapses. Grenade Launcher destroyed. Map ----- +----------------------------------------------------+ | | | | | | | | | | | | | ?????????????????????????????????????????????????? | | ?????????????????????????????????????????????????? | | ?????????????????????????????????????????????????? | | ?????????????????????????????????????????????????? | | ?????????????????????????????????????????????????? | | ?????????????????????????????????????????????????? | | ?????????????????????????????????????????????????? | | ?????????????????????????????????????????????????? | | ?????????????????????????????????????????????????? | | ?????????????????????????????????????????????????? | | ??????##############?????????????????????????????? | | ??????# #############?????????????????? | | ??????# ## # ####??????????????? | | ??????# # ##?????????????? | | ??????# """ """ ### # ##????????????? | | ??????# """ """ #?# a =% # ##?????????? | | ??????# """ """ #?# %% a= #?????????? | | ??????# #?# #?????????? | | ??????# """ """ ### a # a #????????? | | ??????# """ """ ## @ % ????????? | | ??????# """ """ ## dd ###???????????????? | | ??????# ## #?????????????????? | | ??????######## ###### ##?????????????????? | | ?????????????# #????#%# ##??????????????????? | | ?????????????# #????#u#######???????????????????? | | ?????????????# ######"#?????????????????????????? | | ?????????????# #?????????????????????????? | | ????????????## ########?????????????????????????? | | ????????????# #???????????????????????????????? | | ????????????# ##??????????????????????????????? | | ???????????## #??????????????????????????????? | | ???????????# #??????????????????????????????? | | ???????????# ##??????????????????????????????? | | ?????####### ##???????????????????????????????? | | ?????# ##????????????????????????????????? | | ?????# < #?????????????????????????????????? | | ?????# #### #?????????????????????????????????? | | ?????# #??# ##?????????????????????????????????? | | ?????# #??## #??????????????????????????????????? | | ????## ##??###??????????????????????????????????? | | ????# #???????????????????????????????????????? | | ???## #???????????????????????????????????????? | | ??## ##??????????????????????????????????????? | | ??# ##?????????????????????????????????????? | +----------------------------------------------------+ Best States ------------- Heat Dissipation 25 Energy Generation 14 Energy Capacity 160 Matter Stores 300 Matter Capacity 300 Sight Range 16 Terrain Scan Density 10 Evasion (%) 50 Recoil Reduction 2 Item Schematics ----------------- None Robot Schematics ------------------ None Fabricated ------------ Nothing Alien Tech Used ----------------- None Achievements -------------- Let's See Who's Tougher Challenges ------------ None Game ------ Seed MyomerFluxProtection Manual? 0 Play Time 00:10:51 Cumulative 8.2 hours Start 2024.04.05 @ 09:58:06 End 2024.04.05 @ 10:06:47 Sessions 1 Manual Loads 0 Difficulty Rogue Special Mode None Game No. 28 Rogue 28 Adventurer 0 Explorer 0 Win Type - Total 0 Types 0/0/0/0/0/0/0/0/0 Lore% 13 Gallery% 10 Achievement% 10 Wizard Run 0 Options --------- Layout 1 ASCII 0 Keyboard 0 Movement Mouse Keybinds 0 Fullscreen 2 Font 24/Proggy Map View 50x35 Zoom Use 0% Tactical HUD 0 Map Filters NONE Filters NONE Steam 1 RUN: a9cbdb86-8dae-4d8f-afb8-0587dba62e68